{"text_format":"1","workbook":"xlsx","n_sheets":3,"sheets":["Instrucciones","Reformulación Presupuesto Ba","Resumen Presupuesto"],"not_rendered":{"charts":0,"images":5,"macros":1,"external_links":0,"defined_names":8,"comments":2,"pivot_tables":0},"unopened":[],"bounds":{"document_bytes":16777216,"sheet_cells":100000,"rows_first":2000,"rows_last":500,"rows_between":2000,"halvings":0,"cell_chars":16384,"cell_head_chars":4096},"cells_cut":0,"cells_raw":0,"read":"whole","date_system":"1900"}

{"sheet":"Instrucciones","index":0,"n_rows":26,"n_cols":10,"rows_kept":26,"cut":false,"hidden":false,"merged":[[1,9,1,11],[2,2,2,17],[5,2,5,17],[24,1,24,16],[25,1,25,16],[3,9,3,10]]}
[]
[null,null,null,null,null,null,null,null,null,"Doc_básico3_presup_reformulado_Ba INSTRUCCIONES"]
[null,null,"SUBVENCIONES DEL AYUNTAMIENTO DE BARCELONA POR EL FORTALECIMIENTO DE LA ECONOMÍA SOCIAL Y SOLIDARIA Y POR LA INTERCOOPERACIÓN EN LA ESTRATEGIA #ESSBCN2030 - FORTALEZCAMOS LA ESS 2023"]
[null,null,null,null,null,null,null,null,null,"FORTALECEMOS LA ESS 2023"]
[]
[null,null,"Aspectos relevantes relacionados con la reformulación"]
[]
[]
[]
[]
[null,"1. Rellenar la pestaña \"Reformulación Presupuesto\" con los datos económicos del proyecto:"]
[null,"1.1  Rellenar los cuadros DATOS BÁSICOS-PREVISIÓN DE GASTOS DEL PROYECTO SUBVENCIONABLE INICIAL, con los datos económicos de la propuesta inicial con subvención otorgada."]
[null,"1.2  Rellenar r los cuadros DATOS BÁSICOS-PREVISIÓN DE GASTOS DEL PROYECTO REFORMULADO, con los datos económicos de la propuesta de reformulación."]
[null,"2. Revisar y llenar la pestaña \"Resumen Presupuesto\" con los datos económicos del proyecto:"]
[null,"3. Imprimir las hojas de las 2 pestañas (Reformulación presupuesto y Resumen Presupuesto). En formato pdf."]
[]
[]
[]
[]
[null,"Pulsa el icono para generar un documento PDF del libro"]
[]
[]
[]
[]
[null,"4. Si la solicitud se presentó por vía telemática, es necesario que registre la documentación, telemáticamente, como trámite específico, dentro de la convocatoria específica como anexión de documentos adicionales y utilice el número de trámite que el sistema de registro le dio en el momento de la presentación de la solicitud de la subvención."]
[null,"5. En caso de que registre la documentación telemáticamente, como instancia genérica, mediante certificado digital, le recomendamos que avise a la dirección de correo electrónico subvencions_ec_solidaria@bcn.cat,para poder realizar un seguimiento, así como también en los casos que presente la documentación a través de una Oficina de Atención Ciudadana del Ayuntamiento, si no ha podido obtener el certificado digital (los requisitos para obtenerlo los encontrará en la Oficina Virtual de Trámites de la Sede Electrónica:https://seuelectronica.ajuntament.barcelona.cat/oficinavirtual/)."]

{"sheet":"Reformulación Presupuesto Ba","index":1,"n_rows":122,"n_cols":10,"rows_kept":122,"cut":false,"hidden":false,"merged":[[106,0,106,3],[107,0,107,3],[108,0,108,3],[3,0,4,8],[1,1,1,8],[18,0,18,3],[10,6,10,7],[18,6,18,8],[6,2,6,5],[109,0,109,3],[110,0,110,3],[111,0,111,3],[112,0,112,3],[113,0,113,3],[119,0,119,3],[120,0,120,3],[121,0,121,3],[114,0,114,3],[115,0,115,3],[116,0,116,3],[117,0,117,3],[118,0,118,3]]}
[]
[null,"Reformulación modalidad Ba"]
[]
["SUBVENCIONES DEL AYUNTAMIENTO DE BARCELONA POR EL FORTALECIMIENTO DE LA ECONOMÍA SOCIAL Y SOLIDARIA Y POR LA INTERCOOPERACIÓN EN LA ESTRATEGIA #ESSBCN2030 - FORTALEZCAMOS LA ESS 2023"]
[]
[]
[]
["DATOS BÁSICOS"]
["Nombre de la persona jurídica",null,{"$f":"+IF(H9>Dadesbasiques[[#This Row],[Columna1]],\"ALERTA: La quantia de la subvenció atorgada no pot superar el 80% de la despesa total del projecte a subvencionar\", \" \")","v":" "},null,null,"  "]
["NIF de la persona jurídica",null,{"$f":"+IF(H10>Dadesbasiques[[#This Row],[Columna1]],\"ALERTA: La quantia de la subvenció atorgada no pot superar el 80% de la despesa total del projecte a subvencionar\", \" \")","v":" "}]
["Nombre del proyecto subvencionable",null,{"$f":"+IF(H11>Dadesbasiques[[#This Row],[Columna1]],\"ALERTA: La quantia de la subvenció atorgada no pot superar el 80% de la despesa total del projecte a subvencionar\", \" \")","v":" "},null,null,null,"DATOS BÁSICOS PROYECTO REFORMULADO"]
["Importe total del proyecto subvencionable",null,null,null,null,null,"Importe total del proyecto REFORMULADO"]
["Importe imputable a la subvención municipal",null,null,null,null,null,"Importe imputable a la subvención OTORGADA"]
["Importe de la aportación / Cofinanciación de la organización",{"$f":"+B12-B13","v":0},null,null,null,null,"Importe de la aportación / Cofinanciación de la organización",{"$f":"H12-H13","v":0}]
["% del importe solicitado respecto al total del proyecto",{"$f":"B13/B12","v":{"$error":"#DIV/0!"}},null,null,null,null,"% del importe solicitado respecto al total del proyecto",{"$f":"H13/H12","v":{"$error":"#DIV/0!"}},{"$f":"+IF(H15>Dadesbasiques[[#This Row],[Columna1]],\"*Este porcentaje debe ser igual o menor al porcentaje subvencionado inicialmente.\",\" \")","v":{"$error":"#DIV/0!"}}]
["Data inici del projecte subvencionat (dd/mm/aaaa)",null,{"$f":"+IF(H16>Dadesbasiques[[#This Row],[Columna1]],\"ALERTA: La quantia de la subvenció atorgada no pot superar el 80% de la despesa total del projecte a subvencionar\", \" \")","v":" "}]
["Data fi del projecte subvencionat (dd/mm/aaaa)",null,{"$f":"+IF(H17>Dadesbasiques[[#This Row],[Columna1]],\"ALERTA: La quantia de la subvenció atorgada no pot superar el 80% de la despesa total del projecte a subvencionar\", \" \")","v":" "}]
[]
["PREVISIÓN DE GASTOS DEL PROYECTO SUBVENCIONABLE",null,null,null,null,null,"PREVISIÓN DE GASTOS DEL PROYECTO REFORMULADO"]
[]
["Partidas","Importe imputable a la subvención municipal","Importe de la aportación / Cofinanciación de la organización","Importe total del proyecto",null,null,"Importe imputable a la subvención municipal","Importe de la aportación / Cofinanciación de la organización","Importe total del proyecto"]
["D1. Retribuciones y seguridad social (régimen general o régimen de autónomos) del personal propio vinculado/a al proyecto (máximo 25% subvención)",{"$f":"SUM(B23:B27)","v":0},{"$f":"SUM(C23:C27)","v":0},{"$f":"DespesesProjecte5[[#This Row],[Importe imputable a la subvención municipal]]+DespesesProjecte5[[#This Row],[Importe de la aportación / Cofinanciación de la organización]]","v":0},null,null,{"$f":"SUM(G23:G27)","v":0},{"$f":"SUM(H23:H27)","v":0},{"$f":"+G22+H22","v":0}]
[null,null,null,{"$f":"SUM(DespesesProjecte5[[#This Row],[Importe imputable a la subvención municipal]],DespesesProjecte5[[#This Row],[Importe de la aportación / Cofinanciación de la organización]])","v":0},null,null,null,null,{"$f":"+G23+H23","v":0}]
[null,null,null,{"$f":"SUM(DespesesProjecte5[[#This Row],[Importe imputable a la subvención municipal]],DespesesProjecte5[[#This Row],[Importe de la aportación / Cofinanciación de la organización]])","v":0},null,null,null,null,0]
[null,null,null,{"$f":"SUM(DespesesProjecte5[[#This Row],[Importe imputable a la subvención municipal]],DespesesProjecte5[[#This Row],[Importe de la aportación / Cofinanciación de la organización]])","v":0},null,null,null,null,0]
[null,null,null,{"$f":"SUM(DespesesProjecte5[[#This Row],[Importe imputable a la subvención municipal]],DespesesProjecte5[[#This Row],[Importe de la aportación / Cofinanciación de la organización]])","v":0},null,null,null,null,0]
[null,null,null,{"$f":"SUM(DespesesProjecte5[[#This Row],[Importe imputable a la subvención municipal]],DespesesProjecte5[[#This Row],[Importe de la aportación / Cofinanciación de la organización]])","v":0},null,null,null,null,0]
["TOTAL DE GASTOS DE PERSONAL \nMáximo 25% del importe imputable a la subvención municipal si se trata de personal propio asignado al proyecto",{"$f":"B22","v":0},{"$f":"C22","v":0},{"$f":"D22","v":0},null,null,{"$f":"G22","v":0},{"$f":"H22","v":0},{"$f":"I22","v":0},{"$f":"+IF(G28>H13*0.25,\"ALERTA: Máximo 25% del importe imputable a la subvención municipal\", \" \")","v":" "}]
["D2. - Trabajos realizados por profesionales y empresas externas directamente vinculadas al acompañamiento de procesos de la organización y con sus asociadas vinculadas a las acciones subvencionadas.",{"$f":"SUM(B30:B32)","v":0},{"$f":"SUM(C30:C32)","v":0},{"$f":"SUM(DespesesProjecte5[[#This Row],[Importe imputable a la subvención municipal]],DespesesProjecte5[[#This Row],[Importe de la aportación / Cofinanciación de la organización]])","v":0},null,null,{"$f":"SUM(G30:G32)","v":0},{"$f":"SUM(H30:H32)","v":0},0]
[null,null,null,{"$f":"SUM(DespesesProjecte5[[#This Row],[Importe imputable a la subvención municipal]],DespesesProjecte5[[#This Row],[Importe de la aportación / Cofinanciación de la organización]])","v":0},null,null,null,null,0]
[null,null,null,{"$f":"SUM(DespesesProjecte5[[#This Row],[Importe imputable a la subvención municipal]],DespesesProjecte5[[#This Row],[Importe de la aportación / Cofinanciación de la organización]])","v":0},null,null,null,null,0]
[null,null,null,{"$f":"SUM(DespesesProjecte5[[#This Row],[Importe imputable a la subvención municipal]],DespesesProjecte5[[#This Row],[Importe de la aportación / Cofinanciación de la organización]])","v":0},null,null,null,null,0]
["D3. Alquiler de bienes inmuebles directamente vinculados al proyecto",{"$f":"SUM(B34:B36)","v":0},{"$f":"SUM(C34:C36)","v":0},{"$f":"SUM(DespesesProjecte5[[#This Row],[Importe imputable a la subvención municipal]],DespesesProjecte5[[#This Row],[Importe de la aportación / Cofinanciación de la organización]])","v":0},null,null,{"$f":"SUM(G34:G36)","v":0},{"$f":"SUM(H34:H36)","v":0},0]
[null,null,null,{"$f":"SUM(DespesesProjecte5[[#This Row],[Importe imputable a la subvención municipal]],DespesesProjecte5[[#This Row],[Importe de la aportación / Cofinanciación de la organización]])","v":0},null,null,null,null,0]
[null,null,null,{"$f":"SUM(DespesesProjecte5[[#This Row],[Importe imputable a la subvención municipal]],DespesesProjecte5[[#This Row],[Importe de la aportación / Cofinanciación de la organización]])","v":0},null,null,null,null,0]
[null,null,null,{"$f":"SUM(DespesesProjecte5[[#This Row],[Importe imputable a la subvención municipal]],DespesesProjecte5[[#This Row],[Importe de la aportación / Cofinanciación de la organización]])","v":0},null,null,null,null,0]
["D4. Adquisición de materiales y bienes consumibles íntegramente imputables al proyecto",{"$f":"SUM(B38:B40)","v":0},{"$f":"SUM(C38:C40)","v":0},{"$f":"SUM(DespesesProjecte5[[#This Row],[Importe imputable a la subvención municipal]],DespesesProjecte5[[#This Row],[Importe de la aportación / Cofinanciación de la organización]])","v":0},null,null,{"$f":"SUM(G38:G40)","v":0},{"$f":"SUM(H38:H40)","v":0},0]
[null,null,null,{"$f":"SUM(DespesesProjecte5[[#This Row],[Importe imputable a la subvención municipal]],DespesesProjecte5[[#This Row],[Importe de la aportación / Cofinanciación de la organización]])","v":0},null,null,null,null,0]
[null,null,null,{"$f":"SUM(DespesesProjecte5[[#This Row],[Importe imputable a la subvención municipal]],DespesesProjecte5[[#This Row],[Importe de la aportación / Cofinanciación de la organización]])","v":0},null,null,null,null,0]
[null,null,null,{"$f":"SUM(DespesesProjecte5[[#This Row],[Importe imputable a la subvención municipal]],DespesesProjecte5[[#This Row],[Importe de la aportación / Cofinanciación de la organización]])","v":0},null,null,null,null,0]
["D5. Publicidad y propaganda de las actividades directamente vinculadas al proyecto subvencionable",{"$f":"SUM(B42:B44)","v":0},{"$f":"SUM(C42:C44)","v":0},{"$f":"SUM(DespesesProjecte5[[#This Row],[Importe imputable a la subvención municipal]],DespesesProjecte5[[#This Row],[Importe de la aportación / Cofinanciación de la organización]])","v":0},null,null,{"$f":"SUM(G42:G44)","v":0},{"$f":"SUM(H42:H44)","v":0},0]
[null,null,null,{"$f":"SUM(DespesesProjecte5[[#This Row],[Importe imputable a la subvención municipal]],DespesesProjecte5[[#This Row],[Importe de la aportación / Cofinanciación de la organización]])","v":0},null,null,null,null,0]
[null,null,null,{"$f":"SUM(DespesesProjecte5[[#This Row],[Importe imputable a la subvención municipal]],DespesesProjecte5[[#This Row],[Importe de la aportación / Cofinanciación de la organización]])","v":0},null,null,null,null,0]
[null,null,null,{"$f":"SUM(DespesesProjecte5[[#This Row],[Importe imputable a la subvención municipal]],DespesesProjecte5[[#This Row],[Importe de la aportación / Cofinanciación de la organización]])","v":0},null,null,null,null,0]
["D6. Viajes y desplazamientos imputables a las actividades del proyecto (máximo 10% subvención)",{"$f":"SUM(B46:B48)","v":0},{"$f":"SUM(C46:C48)","v":0},{"$f":"SUM(DespesesProjecte5[[#This Row],[Importe imputable a la subvención municipal]],DespesesProjecte5[[#This Row],[Importe de la aportación / Cofinanciación de la organización]])","v":0},null,null,{"$f":"SUM(G46:G48)","v":0},{"$f":"SUM(H46:H48)","v":0},0,{"$f":"+IF(G45>H13*0.1,\"ALERTA: Máximo 10% del importe imputable a la subvención municipal\", \" \")","v":" "}]
[null,null,null,{"$f":"SUM(DespesesProjecte5[[#This Row],[Importe imputable a la subvención municipal]],DespesesProjecte5[[#This Row],[Importe de la aportación / Cofinanciación de la organización]])","v":0},null,null,null,null,0]
[null,null,null,{"$f":"SUM(DespesesProjecte5[[#This Row],[Importe imputable a la subvención municipal]],DespesesProjecte5[[#This Row],[Importe de la aportación / Cofinanciación de la organización]])","v":0},null,null,null,null,0]
[null,null,null,{"$f":"SUM(DespesesProjecte5[[#This Row],[Importe imputable a la subvención municipal]],DespesesProjecte5[[#This Row],[Importe de la aportación / Cofinanciación de la organización]])","v":0},null,null,null,null,0]
["D7. Gastos del informe de auditoría (máximo 1.500€ subvención)",{"$f":"SUM(B50:B50)","v":0},{"$f":"SUM(C50:C50)","v":0},{"$f":"SUM(DespesesProjecte5[[#This Row],[Importe imputable a la subvención municipal]],DespesesProjecte5[[#This Row],[Importe de la aportación / Cofinanciación de la organización]])","v":0},null,null,{"$f":"SUM(G50:G50)","v":0},{"$f":"SUM(H50:H50)","v":0},0,{"$f":"+IF(G49>1500,\"ALERTA: Máximo 1.500€ imputables a la subvención\", \" \")","v":" "}]
[null,null,null,{"$f":"SUM(DespesesProjecte5[[#This Row],[Importe imputable a la subvención municipal]],DespesesProjecte5[[#This Row],[Importe de la aportación / Cofinanciación de la organización]])","v":0},null,null,null,null,0]
["D8. Otros gastos que de manera justificada puedan imputarse directamente al proyecto",{"$f":"SUM(B52:B54)","v":0},{"$f":"SUM(C52:C54)","v":0},{"$f":"SUM(DespesesProjecte5[[#This Row],[Importe imputable a la subvención municipal]],DespesesProjecte5[[#This Row],[Importe de la aportación / Cofinanciación de la organización]])","v":0},null,null,{"$f":"SUM(G52:G54)","v":0},{"$f":"SUM(H52:H54)","v":0},0]
[null,null,null,{"$f":"SUM(DespesesProjecte5[[#This Row],[Importe imputable a la subvención municipal]],DespesesProjecte5[[#This Row],[Importe de la aportación / Cofinanciación de la organización]])","v":0},null,null,null,null,0]
[null,null,null,{"$f":"SUM(DespesesProjecte5[[#This Row],[Importe imputable a la subvención municipal]],DespesesProjecte5[[#This Row],[Importe de la aportación / Cofinanciación de la organización]])","v":0},null,null,null,null,0]
[null,null,null,{"$f":"SUM(DespesesProjecte5[[#This Row],[Importe imputable a la subvención municipal]],DespesesProjecte5[[#This Row],[Importe de la aportación / Cofinanciación de la organización]])","v":0},null,null,null,null,0]
["TOTAL DE OTROS GASTOS DIRECTOS",{"$f":"SUM(B29,B33,B37,B41,B45,B49,B51)","v":0},{"$f":"SUM(C29,C33,C37,C41,C45,C49,C51)","v":0},{"$f":"SUM(D29,D33,D37,D41,D45,D49,D51)","v":0},null,null,{"$f":"SUM(G29,G33,G37,G41,G45,G49,G51)","v":0},{"$f":"SUM(H29,H33,H37,H41,H45,H49,H51)","v":0},{"$f":"SUM(I29,I33,I37,I41,I45,I49,I51)","v":0}]
["TOTAL GASTOS DIRECTOS  (aquellos que se identifican directamente con el proyecto subvencionable)",{"$f":"SUM(B28,B55)","v":0},{"$f":"SUM(C28,C55)","v":0},{"$f":"SUM(D28,D55)","v":0},null,null,{"$f":"SUM(G28,G55)","v":0},{"$f":"SUM(H28,H55)","v":0},{"$f":"SUM(I28,I55)","v":0}]
["I1. Personal de soporte al proyecto (nóminas y seguridad social)",{"$f":"SUM(B58:B60)","v":0},{"$f":"SUM(C58:C60)","v":0},{"$f":"SUM(DespesesProjecte5[[#This Row],[Importe imputable a la subvención municipal]],DespesesProjecte5[[#This Row],[Importe de la aportación / Cofinanciación de la organización]])","v":0},null,null,{"$f":"SUM(G58:G60)","v":0},{"$f":"SUM(H58:H60)","v":0},{"$f":"+G57+H57","v":0}]
[null,null,null,{"$f":"SUM(DespesesProjecte5[[#This Row],[Importe imputable a la subvención municipal]],DespesesProjecte5[[#This Row],[Importe de la aportación / Cofinanciación de la organización]])","v":0},null,null,null,null,{"$f":"+G58+H58","v":0}]
[null,null,null,{"$f":"SUM(DespesesProjecte5[[#This Row],[Importe imputable a la subvención municipal]],DespesesProjecte5[[#This Row],[Importe de la aportación / Cofinanciación de la organización]])","v":0},null,null,null,null,0]
[null,null,null,{"$f":"SUM(DespesesProjecte5[[#This Row],[Importe imputable a la subvención municipal]],DespesesProjecte5[[#This Row],[Importe de la aportación / Cofinanciación de la organización]])","v":0},null,null,null,null,0]
["I2. Seguros",{"$f":"SUM(B62:B64)","v":0},{"$f":"SUM(C62:C64)","v":0},{"$f":"SUM(DespesesProjecte5[[#This Row],[Importe imputable a la subvención municipal]],DespesesProjecte5[[#This Row],[Importe de la aportación / Cofinanciación de la organización]])","v":0},null,null,{"$f":"SUM(G62:G64)","v":0},{"$f":"SUM(H62:H64)","v":0},0]
[null,null,null,{"$f":"SUM(DespesesProjecte5[[#This Row],[Importe imputable a la subvención municipal]],DespesesProjecte5[[#This Row],[Importe de la aportación / Cofinanciación de la organización]])","v":0},null,null,null,null,0]
[null,null,null,{"$f":"SUM(DespesesProjecte5[[#This Row],[Importe imputable a la subvención municipal]],DespesesProjecte5[[#This Row],[Importe de la aportación / Cofinanciación de la organización]])","v":0},null,null,null,null,0]
[null,null,null,{"$f":"SUM(DespesesProjecte5[[#This Row],[Importe imputable a la subvención municipal]],DespesesProjecte5[[#This Row],[Importe de la aportación / Cofinanciación de la organización]])","v":0},null,null,null,null,0]
["I3. Amortización",{"$f":"SUM(B66:B68)","v":0},{"$f":"SUM(C66:C68)","v":0},{"$f":"SUM(DespesesProjecte5[[#This Row],[Importe imputable a la subvención municipal]],DespesesProjecte5[[#This Row],[Importe de la aportación / Cofinanciación de la organización]])","v":0},null,null,{"$f":"SUM(G66:G68)","v":0},{"$f":"SUM(H66:H68)","v":0},0]
[null,null,null,{"$f":"SUM(DespesesProjecte5[[#This Row],[Importe imputable a la subvención municipal]],DespesesProjecte5[[#This Row],[Importe de la aportación / Cofinanciación de la organización]])","v":0},null,null,null,null,0]
[null,null,null,{"$f":"SUM(DespesesProjecte5[[#This Row],[Importe imputable a la subvención municipal]],DespesesProjecte5[[#This Row],[Importe de la aportación / Cofinanciación de la organización]])","v":0},null,null,null,null,0]
[null,null,null,{"$f":"SUM(DespesesProjecte5[[#This Row],[Importe imputable a la subvención municipal]],DespesesProjecte5[[#This Row],[Importe de la aportación / Cofinanciación de la organización]])","v":0},null,null,null,null,0]
["I4.Alquiler de bienes inmuebles",{"$f":"SUM(B70:B72)","v":0},{"$f":"SUM(C70:C72)","v":0},{"$f":"SUM(DespesesProjecte5[[#This Row],[Importe imputable a la subvención municipal]],DespesesProjecte5[[#This Row],[Importe de la aportación / Cofinanciación de la organización]])","v":0},null,null,{"$f":"SUM(G70:G72)","v":0},{"$f":"SUM(H70:H72)","v":0},0]
[null,null,null,{"$f":"SUM(DespesesProjecte5[[#This Row],[Importe imputable a la subvención municipal]],DespesesProjecte5[[#This Row],[Importe de la aportación / Cofinanciación de la organización]])","v":0},null,null,null,null,0]
[null,null,null,{"$f":"SUM(DespesesProjecte5[[#This Row],[Importe imputable a la subvención municipal]],DespesesProjecte5[[#This Row],[Importe de la aportación / Cofinanciación de la organización]])","v":0},null,null,null,null,0]
[null,null,null,{"$f":"SUM(DespesesProjecte5[[#This Row],[Importe imputable a la subvención municipal]],DespesesProjecte5[[#This Row],[Importe de la aportación / Cofinanciación de la organización]])","v":0},null,null,null,null,0]
["I5. Adquisición de materiales y bienes consumibles parcialmente imputables al proyecto",{"$f":"SUM(B74:B76)","v":0},{"$f":"SUM(C74:C76)","v":0},{"$f":"SUM(DespesesProjecte5[[#This Row],[Importe imputable a la subvención municipal]],DespesesProjecte5[[#This Row],[Importe de la aportación / Cofinanciación de la organización]])","v":0},null,null,{"$f":"SUM(G74:G76)","v":0},{"$f":"SUM(H74:H76)","v":0},0]
[null,null,null,{"$f":"SUM(DespesesProjecte5[[#This Row],[Importe imputable a la subvención municipal]],DespesesProjecte5[[#This Row],[Importe de la aportación / Cofinanciación de la organización]])","v":0},null,null,null,null,0]
[null,null,null,{"$f":"SUM(DespesesProjecte5[[#This Row],[Importe imputable a la subvención municipal]],DespesesProjecte5[[#This Row],[Importe de la aportación / Cofinanciación de la organización]])","v":0},null,null,null,null,0]
[null,null,null,{"$f":"SUM(DespesesProjecte5[[#This Row],[Importe imputable a la subvención municipal]],DespesesProjecte5[[#This Row],[Importe de la aportación / Cofinanciación de la organización]])","v":0},null,null,null,null,0]
["I6. Mantenimiento de edificios y/o instalaciones",{"$f":"SUM(B78:B80)","v":0},{"$f":"SUM(C78:C80)","v":0},{"$f":"SUM(DespesesProjecte5[[#This Row],[Importe imputable a la subvención municipal]],DespesesProjecte5[[#This Row],[Importe de la aportación / Cofinanciación de la organización]])","v":0},null,null,{"$f":"SUM(G78:G80)","v":0},{"$f":"SUM(H78:H80)","v":0},0]
[null,null,null,{"$f":"SUM(DespesesProjecte5[[#This Row],[Importe imputable a la subvención municipal]],DespesesProjecte5[[#This Row],[Importe de la aportación / Cofinanciación de la organización]])","v":0},null,null,null,null,0]
[null,null,null,{"$f":"SUM(DespesesProjecte5[[#This Row],[Importe imputable a la subvención municipal]],DespesesProjecte5[[#This Row],[Importe de la aportación / Cofinanciación de la organización]])","v":0},null,null,null,null,0]
[null,null,null,{"$f":"SUM(DespesesProjecte5[[#This Row],[Importe imputable a la subvención municipal]],DespesesProjecte5[[#This Row],[Importe de la aportación / Cofinanciación de la organización]])","v":0},null,null,null,null,0]
["I7. Comunicaciones (teléfono, correos, conexión a internet)",{"$f":"SUM(B82:B84)","v":0},{"$f":"SUM(C82:C84)","v":0},{"$f":"SUM(DespesesProjecte5[[#This Row],[Importe imputable a la subvención municipal]],DespesesProjecte5[[#This Row],[Importe de la aportación / Cofinanciación de la organización]])","v":0},null,null,{"$f":"SUM(G82:G84)","v":0},{"$f":"SUM(H82:H84)","v":0},0]
[null,null,null,{"$f":"SUM(DespesesProjecte5[[#This Row],[Importe imputable a la subvención municipal]],DespesesProjecte5[[#This Row],[Importe de la aportación / Cofinanciación de la organización]])","v":0},null,null,null,null,0]
[null,null,null,{"$f":"SUM(DespesesProjecte5[[#This Row],[Importe imputable a la subvención municipal]],DespesesProjecte5[[#This Row],[Importe de la aportación / Cofinanciación de la organización]])","v":0},null,null,null,null,0]
[null,null,null,{"$f":"SUM(DespesesProjecte5[[#This Row],[Importe imputable a la subvención municipal]],DespesesProjecte5[[#This Row],[Importe de la aportación / Cofinanciación de la organización]])","v":0},null,null,null,null,0]
["I8. Gastos financieros",{"$f":"SUM(B86:B88)","v":0},{"$f":"SUM(C86:C88)","v":0},{"$f":"SUM(DespesesProjecte5[[#This Row],[Importe imputable a la subvención municipal]],DespesesProjecte5[[#This Row],[Importe de la aportación / Cofinanciación de la organización]])","v":0},null,null,{"$f":"SUM(G86:G88)","v":0},{"$f":"SUM(H86:H88)","v":0},0]
[null,null,null,{"$f":"SUM(DespesesProjecte5[[#This Row],[Importe imputable a la subvención municipal]],DespesesProjecte5[[#This Row],[Importe de la aportación / Cofinanciación de la organización]])","v":0},null,null,null,null,0]
[null,null,null,{"$f":"SUM(DespesesProjecte5[[#This Row],[Importe imputable a la subvención municipal]],DespesesProjecte5[[#This Row],[Importe de la aportación / Cofinanciación de la organización]])","v":0},null,null,null,null,0]
[null,null,null,{"$f":"SUM(DespesesProjecte5[[#This Row],[Importe imputable a la subvención municipal]],DespesesProjecte5[[#This Row],[Importe de la aportación / Cofinanciación de la organización]])","v":0},null,null,null,null,0]
["I9. Suministros",{"$f":"SUM(B90:B92)","v":0},{"$f":"SUM(C90:C92)","v":0},{"$f":"SUM(DespesesProjecte5[[#This Row],[Importe imputable a la subvención municipal]],DespesesProjecte5[[#This Row],[Importe de la aportación / Cofinanciación de la organización]])","v":0},null,null,{"$f":"SUM(G90:G92)","v":0},{"$f":"SUM(H90:H92)","v":0},0]
[null,null,null,{"$f":"SUM(DespesesProjecte5[[#This Row],[Importe imputable a la subvención municipal]],DespesesProjecte5[[#This Row],[Importe de la aportación / Cofinanciación de la organización]])","v":0},null,null,null,null,0]
[null,null,null,{"$f":"SUM(DespesesProjecte5[[#This Row],[Importe imputable a la subvención municipal]],DespesesProjecte5[[#This Row],[Importe de la aportación / Cofinanciación de la organización]])","v":0},null,null,null,null,0]
[null,null,null,{"$f":"SUM(DespesesProjecte5[[#This Row],[Importe imputable a la subvención municipal]],DespesesProjecte5[[#This Row],[Importe de la aportación / Cofinanciación de la organización]])","v":0},null,null,null,null,0]
["I10. Trabajo realizado por otras empresas, parcialmente imputables al proyecto (limpieza, seguridad...)",{"$f":"SUM(B94:B96)","v":0},{"$f":"SUM(C94:C96)","v":0},{"$f":"SUM(DespesesProjecte5[[#This Row],[Importe imputable a la subvención municipal]],DespesesProjecte5[[#This Row],[Importe de la aportación / Cofinanciación de la organización]])","v":0},null,null,{"$f":"SUM(G94:G96)","v":0},{"$f":"SUM(H94:H96)","v":0},0]
[null,null,null,{"$f":"SUM(DespesesProjecte5[[#This Row],[Importe imputable a la subvención municipal]],DespesesProjecte5[[#This Row],[Importe de la aportación / Cofinanciación de la organización]])","v":0},null,null,null,null,0]
[null,null,null,{"$f":"SUM(DespesesProjecte5[[#This Row],[Importe imputable a la subvención municipal]],DespesesProjecte5[[#This Row],[Importe de la aportación / Cofinanciación de la organización]])","v":0},null,null,null,null,0]
[null,null,null,{"$f":"SUM(DespesesProjecte5[[#This Row],[Importe imputable a la subvención municipal]],DespesesProjecte5[[#This Row],[Importe de la aportación / Cofinanciación de la organización]])","v":0},null,null,null,null,0]
["TOTAL GASTOS INDIRECTOS (se podrán asignar al proyecto subvencionable utilizando un porcentaje de asignación) - Máximo 10 % del importe imputable a la subvención municipal",{"$f":"SUM(B57,B61,B65,B69,B73,B77,B81,B85,B89,B93)","v":0},{"$f":"SUM(C57,C61,C65,C69,C73,C77,C81,C85,C89,C93)","v":0},{"$f":"SUM(D57,D61,D65,D69,D73,D77,D81,D85,D89,D93)","v":0},null,null,{"$f":"SUM(G57,G61,G65,G69,G73,G77,G81,G85,G89,G93)","v":0},{"$f":"SUM(H57,H61,H65,H69,H73,H77,H81,H85,H89,H93)","v":0},{"$f":"SUM(I57,I61,I65,I69,I73,I77,I81,I85,I89,I93)","v":0},{"$f":"+IF(G97>H13*0.1,\"ALERTA: Máximo 10% del importe imputable a la subvención municipal\", \" \")","v":" "}]
["TOTAL DE GASTOS PREVISTOS",{"$f":"SUM(B97,B56)","v":0},{"$f":"SUM(C97,C56)","v":0},{"$f":"SUM(D97,D56)","v":0},null,null,{"$f":"SUM(G97,G56)","v":0},{"$f":"SUM(H97,H56)","v":0},{"$f":"SUM(I97,I56)","v":0}]
[]
[]
[]
[]
[]
[]
[]
[]
["Modalidad Ba. Intercooperación Intercooperación de 2º y mayor nivel: Proyectos promovidos por organizaciones de la Economía Social y Solidaria o de las finanzas éticas de segundo nivel y superior, que contribuyen al despliegue del Acuerdo y la Estrategia #ESSBCN2030 de Barcelona, y tengan por destinatarias a sus organizaciones socias"]
["1.  La cuantía de la subvención otorgada no superará el 80% del gasto total del proyecto a subvencionar. "]
["2.  El importe máximo de subvención para la modalidad \"a\" del ámbito temático B de Intercooperación (Ba) es 35.000€."]
["3.  En el caso de que la solicitud presentada sobrepase el importe máximo, se considerará como importe solicitado el máximo de lo establecido en la convocatoria."]
["4.  Se limita con un máximo del 25%  el importe de la subvención para gastos de personal propio asignado al proyecto subvencionado (retribuciones y seguridad social-régimen general o autónomos)."]
["5. Son imputables en esta modalidad los gastos indirectos, detallados en el apartado 13.3. de las bases reguladoras; con un máximo del 10% del importe de la subvención.\nEl carácter subvencionable del gasto de amortización estará sujeto a las condiciones siguientes:\n> Que las subvenciones no hayan contribuido a la compra de los bienes.\n> Que la amortización se calcule de conformidad con las normas de contabilidad generalmente aceptadas.\n> Que el coste se refiera al período subvencionable.\n\n"]
["6.  Cuando se tenga que hacer gastos de más de 12.000 €, sin IVA, en el caso de prestaciones de servicios o entrega de bienes y para aquellos gastos de más de 30.000 €,  sin IVA, en el caso de ejecución de obras, se deberán incorporar tres presupuestos solicitados y argumentar el motivo de la adjudicación en el caso de no ser la propuesta más ventajosa económicamente."]
["7. Para las subvenciones otorgadas por importe igual o superior a 20.000 € es necesario un informe de auditoría para la justificación. El importe de este informe se considera gasto subvencionable, con un límite máximo de 1.500€."]
["8. En  ningún caso se considerarán gastos subvencionables:\n> Los impuestos indirectos cuando sean susceptibles de recuperación o compensación.\n> Los gastos de inversión, incluidas las adquisiciones de bienes muebles.\n> Los gastos realizados con fecha anterior al inicio del proyecto y fecha posterior a la finalización del proyecto.\n> Otros gastos que se indiquen en la convocatoria."]
["9. La retribución de las personas contratadas en el marco del proyecto subvencionado no puede ser inferior al Salario Mínimo Interprofesional (SMI), ni a la estipulada al correspondiente convenio o marco normativo de referencia (punto 7 de las bases 2021: requisitos de los proyectos)."]
["10. Los materiales producidos de difusión, estudios, informes o materiales didácticos utilizados, etc. en el caso de tratarse de gasto elegible de la subvención, deberán tener licencia Creative Commons -Compartir Igual- (share a like) y no podrán tener la condición –Sin Obras Derivadas- (no derivate Works)."]
["11. Los proyectos subvencionados deben fomentar actividades de interés público o social, las cuales deben ser gratuitas para las personas participantes o en ningún caso el precio debe suponer un obstáculo para su participación, buscando otras formas de acceso para personas con dificultades económicas. En el caso que haya algún tipo de lucro, deberán revertir en las propias actividades subvencionadas."]
["12. El Ayuntamiento de Barcelona y sus entidades municipales en ningún caso subvencionarán el mismo proyecto, ejecutado durante el mismo período, por ningún otro procedimiento de concesión que no sea el regulado por las bases reguladoras."]
["13. El/la beneficiario/aria no podrá alterar en ningún caso el destino de las subvenciones concedidas."]
["14. La organización designada como representante de la agrupación será plenamente responsable del proyecto ante el Ayuntamiento respeto al cumplimiento de las obligaciones establecidas en las bases reguladoras, sin perjuicio de la responsabilidad de las otras organizaciones socias de la agrupación, siéndole de aplicación los requisitos previstos en el punto 6.1 de las bases reguladoras."]
["15. En ningún caso podrán formar parte de la agrupación las organizaciones que hayan recibido otras subvenciones para la ejecución del mismo proyecto de otras administraciones públicas."]

{"sheet":"Resumen Presupuesto","index":2,"n_rows":78,"n_cols":11,"rows_kept":78,"cut":false,"hidden":false,"merged":[[1,2,1,7],[5,0,5,1],[3,0,3,8],[17,4,18,4],[23,6,23,7],[28,7,28,9],[29,6,29,11],[6,9,7,9],[6,0,7,1],[6,2,7,2],[6,3,7,3],[6,4,7,4],[6,6,7,7],[6,8,7,8],[8,0,19,0],[17,1,18,1],[17,2,18,2],[17,3,18,3]]}
[]
[null,null,"Resumen presupuesto modalidad Ba"]
[]
["SUBVENCIONES DEL AYUNTAMIENTO DE BARCELONA POR EL FORTALECIMIENTO DE LA ECONOMÍA SOCIAL Y SOLIDARIA Y POR LA INTERCOOPERACIÓN EN LA ESTRATEGIA #ESSBCN2030 - FORTALEZCAMOS LA ESS 2023",null,null,null,null,null,null,null,null,"MODALIDAD Ba"]
[]
["GASTOS PREVISTOS",null,null,null,null,null,"INGRESOS PREVISTOS"]
["Gastos directos \n(aquellos que se identifican directamente con el proyecto)",null,"Previsión inicial coste total","Previsión reformulada coste total","Importe imputado a la subvención otorgada",null,"Ingresos previstos",null,"Previsión inicial ingreso total","Previsión reformulada ingreso total"]
[]
["Ba","D1. Retribuciones y seguridad social (régimen general o régimen de autónomos) del personal propio vinculado/a al proyecto (máximo 25% subvención)",{"$f":"+'Reformulación Presupuesto Ba'!D22","v":0},{"$f":"+'Reformulación Presupuesto Ba'!I22","v":0},{"$f":"+'Reformulación Presupuesto Ba'!G22","v":0},{"$f":"+IF(D9<0,\"No s'admeten valors negatius\",\"\")","v":""},"A.","Subvención municipal (importe solicitado a la instancia/otorgado)"]
[null,"D2.  Trabajos realizados por profesionales y empresas externas directamente vinculadas al acompañamiento de procesos de la organización y con sus asociadas",{"$f":"+'Reformulación Presupuesto Ba'!D29","v":0},{"$f":"+'Reformulación Presupuesto Ba'!I29","v":0},{"$f":"+'Reformulación Presupuesto Ba'!G29","v":0},{"$f":"+IF(D10<0,\"No s'admeten valors negatius\",\"\")","v":""},"B.","Subvenciones de otras administraciones",null,null,{"$f":"+IF(J10<0,\"No s'admeten valors negatius\",\"\")","v":""}]
[null,"D3.  Alquiler de bienes inmuebles directamente vinculados al proyecto subvencionable",{"$f":"+'Reformulación Presupuesto Ba'!D33","v":0},{"$f":"+'Reformulación Presupuesto Ba'!I33","v":0},{"$f":"+'Reformulación Presupuesto Ba'!G33","v":0},{"$f":"+IF(D11<0,\"No s'admeten valors negatius\",\"\")","v":""},"C.","Subvenciones de entes privados",null,null,""]
[null,"D4.  Adquisición de materiales y de bienes consumibles íntegramente vinculados al proyecto subvencionable",{"$f":"+'Reformulación Presupuesto Ba'!D37","v":0},{"$f":"+'Reformulación Presupuesto Ba'!I37","v":0},{"$f":"+'Reformulación Presupuesto Ba'!G37","v":0},{"$f":"+IF(D12<0,\"No s'admeten valors negatius\",\"\")","v":""},"D.","Recursos propios de la organización aplicados al proyecto"]
[null,"D5.  Publicidad y propaganda de las actividades directamente vinculadas al proyecto subvencionable",{"$f":"+'Reformulación Presupuesto Ba'!D41","v":0},{"$f":"+'Reformulación Presupuesto Ba'!I41","v":0},{"$f":"+'Reformulación Presupuesto Ba'!G41","v":0},null,"E.","Taquillaje"]
[null,"D6.  Viajes y desplazamientos imputables a las actividades del proyecto subvencionable (Máx. 10% subvención)",{"$f":"+'Reformulación Presupuesto Ba'!D45","v":0},{"$f":"+'Reformulación Presupuesto Ba'!I45","v":0},{"$f":"+'Reformulación Presupuesto Ba'!G45","v":0},null,"F.","Cuotas de inscripción"]
[null,"D7.  Gastos del informe de auditoría (máx. 1.500€ subvención)",{"$f":"+'Reformulación Presupuesto Ba'!D49","v":0},{"$f":"+'Reformulación Presupuesto Ba'!I49","v":0},{"$f":"+'Reformulación Presupuesto Ba'!G49","v":0},null,"G.","Venta de productos"]
[null,"D8.  Otros gastos que de manera justificada puedan imputarse directamente al proyecto subvencionable",{"$f":"+'Reformulación Presupuesto Ba'!D51","v":0},{"$f":"+'Reformulación Presupuesto Ba'!I51","v":0},{"$f":"+'Reformulación Presupuesto Ba'!G51","v":0},null,"H","Publicidad y/o Esponsorización"]
[null,"Total Gastos Directos  ",{"$f":"SUM(C9:C16)","v":0},{"$f":"SUM(D9:D16)","v":0},{"$f":"SUM(E9:E16)","v":0},null,"I.","Otros ingresos"]
[null,"Gastos Indirectos (se podrán asignar al proyecto utilizando un porcentaje de asignación) ","Previsión inicial coste total  ","Previsión reformulada coste total ","Importe imputado a la subvención otorgada",null,null,"Total Ingresos",{"$f":"SUM(I9:I17)","v":0},{"$f":"SUM(J9:J17)","v":0}]
[]
[null,"I.1 Personal de soporte al proyecto subvencionado (Nóminas y seguridad social)",{"$f":"+'Reformulación Presupuesto Ba'!D57","v":0},{"$f":"+'Reformulación Presupuesto Ba'!I57","v":0},{"$f":"+'Reformulación Presupuesto Ba'!G57","v":0}]
[null,"I.2  Seguros",{"$f":"+'Reformulación Presupuesto Ba'!D61","v":0},{"$f":"+'Reformulación Presupuesto Ba'!I61","v":0},{"$f":"+'Reformulación Presupuesto Ba'!G61","v":0}]
[null,"I.3  Amortización",{"$f":"+'Reformulación Presupuesto Ba'!D65","v":0},{"$f":"+'Reformulación Presupuesto Ba'!I65","v":0},{"$f":"+'Reformulación Presupuesto Ba'!G65","v":0}]
[null,"I.4  Alquiler de bienes inmuebles",{"$f":"+'Reformulación Presupuesto Ba'!D69","v":0},{"$f":"+'Reformulación Presupuesto Ba'!I69","v":0},{"$f":"+'Reformulación Presupuesto Ba'!G69","v":0},{"$f":"+IF(D22<0,\"No s'admeten valors negatius\",\"\")","v":""}]
[null,"I.5  Adquisición de materiales y bienes consumibles parcialmente imputables al proyecto",{"$f":"+'Reformulación Presupuesto Ba'!D73","v":0},{"$f":"+'Reformulación Presupuesto Ba'!I73","v":0},{"$f":"+'Reformulación Presupuesto Ba'!G73","v":0},null,"Ingresos menos gastos",null,{"$f":"+I18-C31","v":0},{"$f":"+J18-D31","v":0}]
[null,"I.6  Mantenimiento de edificio y/o instalaciones",{"$f":"+'Reformulación Presupuesto Ba'!D77","v":0},{"$f":"+'Reformulación Presupuesto Ba'!I77","v":0},{"$f":"+'Reformulación Presupuesto Ba'!G77","v":0}]
[null,"I.7  Comunicaciones (teléfono, correos, conexión a internet)",{"$f":"+'Reformulación Presupuesto Ba'!D81","v":0},{"$f":"+'Reformulación Presupuesto Ba'!I81","v":0},{"$f":"+'Reformulación Presupuesto Ba'!G81","v":0},null,null,null,"% subvencionado inicialmente",{"$f":"I9/C31","v":{"$error":"#DIV/0!"}}]
[null,"I.8  Gastos financieros",{"$f":"+'Reformulación Presupuesto Ba'!D85","v":0},{"$f":"+'Reformulación Presupuesto Ba'!I85","v":0},{"$f":"+'Reformulación Presupuesto Ba'!G85","v":0}]
[null,"I.9  Suministros ",{"$f":"+'Reformulación Presupuesto Ba'!D89","v":0},{"$f":"+'Reformulación Presupuesto Ba'!I89","v":0},{"$f":"+'Reformulación Presupuesto Ba'!G89","v":0},null,null,null,"% subvencionado después de reformular",{"$f":"+J9/D31","v":{"$error":"#DIV/0!"}},"*"]
[null,"I.10 Trabajos realizados por otras empresas, parcialmente imputables al proyecto subvencionable (limpieza, seguridad...)",{"$f":"+'Reformulación Presupuesto Ba'!D93","v":0},{"$f":"+'Reformulación Presupuesto Ba'!I93","v":0},{"$f":"+'Reformulación Presupuesto Ba'!G93","v":0},null,null,"* Este porcentaje debe ser igual o menor al porcentaje subvencionado inicialmente."]
[null,"Total Gastos Indirectos   (Máx. 10% subv)",{"$f":"SUM(C20:C29)","v":0},{"$f":"SUM(D20:D29)","v":0},{"$f":"SUM(E20:E29)","v":0}]
[null,"Total Gastos ",{"$f":"+C17+C30","v":0},{"$f":"+D17+D30","v":0},{"$f":"+E17+E30","v":0}]
[]
[]
[]
[]
[]
[]
[]
[]
[]
[]
[]
[]
[]
[]
[]
[]
[]
[]
[]
[]
[]
[]
[]
[]
[]
[]
[]
[]
[]
[]
[]
[]
[]
[]
[]
[]
[]
[]
[]
[]
[]
[]
[]
[]
[]
[]
[null,null,0]